bitfinex/quotes_BTCUSD_20251031
["timestamp","ask_amount","ask_price","bid_price","bid_amount"]
[1761916164584,2.57508052,109990.0,109960.0,0.17272482]
[1761916164585,2.12729587,109980.0,109960.0,0.17272482]
[1761916164785,0.42657623,109970.0,109960.0,0.21660115]
[1761916164987,0.5639821,109980.0,109960.0,0.2174266]
[1761916165194,2.0,109970.0,109960.0,0.2174266]
[1761916165643,2.0,109970.0,109960.0,0.2335066]
[1761916165860,2.43668623,109970.0,109960.0,0.2092166]
[1761916166068,2.43668623,109970.0,109960.0,0.16782268]
[1761916166485,2.43668623,109970.0,109960.0,0.16682268]
[1761916167383,2.43668623,109970.0,109960.0,0.19111268]
[1761916167814,2.42657623,109970.0,109960.0,0.19411268]
[1761916168243,2.0,109970.0,109960.0,0.19411268]
[1761916169191,2.01011,109970.0,109960.0,0.19411268]
[1761916169396,2.0,109970.0,109960.0,0.19411268]
[1761916170492,2.56399367,109970.0,109960.0,0.16982268]
[1761916170698,2.56399367,109970.0,109960.0,0.14170268]
[1761916170899,2.56399367,109970.0,109960.0,0.15778268]
[1761916171251,2.56399367,109970.0,109960.0,0.16910268]
[1761916172085,2.43668623,109970.0,109960.0,0.19339268]
[1761916172717,2.42657623,109970.0,109960.0,0.19339268]
[1761916174983,2.56399367,109970.0,109960.0,0.16910268]
[1761916177464,2.43668623,109970.0,109960.0,0.16910268]
[1761916177669,2.42657623,109970.0,109960.0,0.19339268]
[1761916177873,0.0416015,109980.0,109970.0,0.12730744]
[1761916178076,3.19540261,109980.0,109970.0,0.14338744]
[1761916178278,2.69540261,109980.0,109970.0,0.14338744]
[1761916178477,2.14153051,109980.0,109970.0,0.15470744]
[1761916178691,2.69540261,109980.0,109970.0,0.15470744]
[1761916179107,2.0416015,109980.0,109970.0,0.17999744]
[1761916179344,0.01426166,109980.0,109970.0,0.17999744]
[1761916180181,0.00022139,109990.0,109980.0,0.12729587]
[1761916180390,0.00022139,109990.0,109980.0,0.17898587]
[1761916181437,3.06519191,109990.0,109980.0,0.05169]
[1761916181644,2.13861568,109990.0,109980.0,0.05169]
[1761916181850,2.56519191,109990.0,109980.0,0.17898587]
[1761916182058,2.56519191,109990.0,109980.0,0.15469587]
[1761916182473,2.56419191,109990.0,109980.0,0.15469587]
[1761916182917,0.00022139,109990.0,109980.0,0.74532756]
[1761916183130,0.0002,110010.0,110000.0,0.12727272]
[1761916183418,0.0002,110010.0,110000.0,0.26267354]
[1761916183631,0.0002,110010.0,110000.0,0.26878173]
[1761916183839,0.0002,110010.0,110000.0,0.352177]
[1761916184492,0.00028773,110010.0,110000.0,0.360177]
[1761916185116,0.00028773,110010.0,110000.0,0.78675323]
[1761916188368,0.0002,110030.0,110020.0,0.12724959]
[1761916188585,0.0002,110030.0,110020.0,0.26218711]
[1761916188800,0.0002,110030.0,110020.0,0.71303371]
[1761916189013,0.00108519,110030.0,110020.0,0.73634371]
[1761916190545,0.00208519,110030.0,110020.0,0.73634371]
[1761916191222,0.00108519,110030.0,110020.0,0.73934371]
[1761916191453,0.00108519,110030.0,110020.0,0.74534371]
[1761916192088,0.00108519,110030.0,110020.0,0.31876748]
[1761916197546,0.00947678,110030.0,110020.0,0.31876748]
[1761916199482,0.00947678,110030.0,110020.0,0.18649959]
[1761916200393,0.00947678,110030.0,110020.0,0.17749959]
[1761916200606,0.00947678,110030.0,110020.0,0.1966781]
[1761916200820,0.00947678,110030.0,110020.0,0.1976781]
[1761916201032,0.00947678,110030.0,110020.0,0.62425433]
[1761916201261,0.00947678,110030.0,110020.0,0.78571384]
[1761916201492,0.00108519,110030.0,110020.0,0.78571384]
[1761916201724,0.0002,110040.0,110030.0,0.12723802]
[1761916201944,0.0002,110050.0,110040.0,0.46722646]
[1761916202156,0.00033158,110050.0,110040.0,1.46044793]
[1761916202367,0.0004,110060.0,110050.0,0.1272149]
[1761916202629,0.0004,110060.0,110050.0,0.71203369]
[1761916202840,0.0004,110060.0,110050.0,1.03386014]
[1761916203055,0.0004,110060.0,110050.0,1.12367915]
[1761916203468,0.0004,110060.0,110050.0,1.44557141]
[1761916203672,0.0004,110060.0,110050.0,1.44657141]
[1761916203889,0.0004,110060.0,110050.0,0.70110292]
[1761916204095,0.0004,110060.0,110050.0,1.44857141]
[1761916204305,0.0004,110060.0,110050.0,1.44757141]
[1761916204514,0.0004,110060.0,110050.0,1.48375369]
[1761916204730,0.0004,110060.0,110050.0,1.45357141]
[1761916206938,0.00880385,110060.0,110050.0,0.70510292]
[1761916207572,0.00880385,110060.0,110050.0,1.45357141]
[1761916208007,0.0002,110070.0,110060.0,0.87567183]
[1761916208225,0.0002,110070.0,110060.0,1.41050985]
[1761916208433,0.00108472,110070.0,110060.0,1.43381985]
[1761916209090,1e-08,110070.0,110060.0,1.48100212]
[1761916209316,1e-08,110070.0,110060.0,1.49400211]
[1761916209518,1e-08,110070.0,110060.0,1.49500211]
[1761916209742,0.0002,110090.0,110080.0,0.46718023]
[1761916209954,0.00068227,110090.0,110080.0,1.36990575]
[1761916210165,0.00068227,110090.0,110080.0,1.39321575]
[1761916211251,0.00068227,110090.0,110080.0,1.39521575]
[1761916211710,0.00068227,110090.0,110080.0,0.64674726]
[1761916212138,0.00068227,110090.0,110080.0,0.64974726]
[1761916212978,0.00068227,110090.0,110080.0,0.64674726]
[1761916213469,0.00168227,110090.0,110080.0,0.64474726]
[1761916213718,0.00168227,110090.0,110080.0,0.21592825]
[1761916215352,0.00212446,110090.0,110080.0,0.21592825]
[1761916222052,0.91376957,110120.0,110090.0,0.13877868]
[1761916222253,2.0,110100.0,110090.0,0.19449784]
[1761916222473,0.00841731,110100.0,110090.0,0.19449784]
[1761916222681,0.00841731,110100.0,110090.0,0.21088784]
[1761916224229,0.13557443,110100.0,110090.0,0.21088784]
[1761916224559,0.14643443,110100.0,110090.0,0.028]
[1761916224760,0.14643443,110100.0,110080.0,0.13879022]
[1761916224761,2.0,110090.0,110080.0,0.13879022]
[1761916225052,0.00841731,110090.0,110080.0,0.16137022]
[1761916225252,0.00841731,110090.0,110080.0,0.17776022]
[1761916225452,0.00841731,110090.0,110080.0,0.20916393]
[1761916226594,0.00841731,110090.0,110080.0,0.21016393]
[1761916226950,0.00841731,110090.0,110080.0,0.21216393]
[1761916229417,0.00841731,110090.0,110080.0,0.78565065]
[1761916230028,0.00841731,110090.0,110080.0,0.30198294]
[1761916231219,0.00841731,110090.0,110080.0,0.78565065]
[1761916231630,0.00841731,110090.0,110080.0,0.30198294]
[1761916234180,0.00022106,110100.0,110090.0,0.12716868]
[1761916234437,0.00868516,110100.0,110090.0,0.36394365]
[1761916234639,0.00868516,110100.0,110090.0,0.3457767]
[1761916235724,0.00868516,110100.0,110090.0,1.16944441]
[1761916235725,0.0084641,110100.0,110090.0,1.16944441]
[1761916235944,0.01437553,110120.0,110110.0,0.12714558]
[1761916235945,0.00013154,110120.0,110110.0,0.12714558]
[1761916236158,0.00013154,110120.0,110110.0,0.34513757]
[1761916236377,0.00013154,110120.0,110110.0,0.32597392]
[1761916236590,0.01099154,110120.0,110110.0,0.15414558]
[1761916236803,0.49465925,110120.0,110110.0,0.15414558]
[1761916237032,0.01099154,110120.0,110110.0,0.15414558]
[1761916237242,0.00013154,110120.0,110110.0,0.17672558]
[1761916237872,0.00113154,110120.0,110110.0,0.17672558]
[1761916238083,0.00113154,110120.0,110110.0,0.20827391]
[1761916238298,0.49565925,110120.0,110110.0,0.028]
[1761916238512,0.01199154,110120.0,110110.0,0.17772558]
[1761916238728,0.00113154,110120.0,110110.0,0.17772558]
[1761916239818,0.00113154,110120.0,110110.0,0.19588923]
[1761916240281,0.00113154,110120.0,110110.0,0.28570824]
[1761916240492,0.00113154,110120.0,110110.0,0.3573636]
[1761916241248,0.31001725,110140.0,110130.0,0.15512249]
[1761916241487,2.3269448,110140.0,110130.0,0.15512249]
[1761916241930,2.01781142,110140.0,110130.0,0.15512249]
[1761916242162,2.02867142,110140.0,110130.0,0.15512249]
[1761916242383,2.02867142,110140.0,110130.0,0.18560614]
[1761916242602,2.03567142,110140.0,110130.0,0.18560614]
[1761916243033,2.04788849,110140.0,110130.0,0.18560614]
[1761916244280,2.51462865,110140.0,110130.0,0.15512249]
[1761916245831,2.50376865,110140.0,110130.0,0.15512249]
[1761916246029,2.51462865,110140.0,110130.0,0.15512249]
[1761916247872,2.52308758,110140.0,110130.0,0.15512249]
[1761916248218,2.52308758,110140.0,110130.0,0.17781249]
[1761916248452,2.51222758,110140.0,110130.0,0.17781249]
[1761916248645,2.65019852,110140.0,110130.0,0.17781249]
[1761916248851,2.0,110130.0,110120.0,0.16218403]
[1761916249099,0.01086,110130.0,110120.0,0.19610807]
[1761916249255,0.01152296,110130.0,110120.0,0.19610807]
[1761916249441,0.01152296,110130.0,110120.0,0.21879807]
[1761916249636,0.00066296,110130.0,110120.0,0.21879807]
[1761916250477,0.00166296,110130.0,110120.0,0.21879807]
[1761916251403,0.4270885,110130.0,110120.0,0.21879807]
[1761916251605,0.4300885,110130.0,110120.0,0.21879807]
[1761916254199,0.00466296,110130.0,110120.0,0.21879807]
[1761916255067,0.00166296,110130.0,110120.0,0.21879807]
[1761916255507,0.00266296,110130.0,110120.0,0.21879807]
[1761916256265,0.00166296,110130.0,110120.0,0.21879807]
[1761916256916,0.00166296,110130.0,110120.0,1.15946816]
[1761916257270,0.00166296,110130.0,110120.0,0.73404262]
[1761916261366,0.00166296,110130.0,110120.0,1.15946816]
[1761916261578,0.00066296,110130.0,110120.0,0.73404262]
[1761916261762,0.00066296,110130.0,110120.0,0.73604262]
[1761916266501,0.00066296,110130.0,110120.0,0.31061708]
[1761916266698,0.00066296,110130.0,110120.0,0.73604262]
[1761916267562,0.00066296,110130.0,110120.0,0.31061708]
[1761916268398,0.00066296,110130.0,110120.0,0.73604262]
[1761916269251,0.00066296,110130.0,110120.0,1.16146816]
[1761916269896,0.00066296,110130.0,110120.0,0.31061708]
[1761916270130,0.00066296,110130.0,110120.0,1.16146816]
[1761916272034,0.00066296,110130.0,110120.0,0.31061708]
[1761916272241,0.00066296,110130.0,110120.0,1.16146816]
[1761916274231,0.00066296,110130.0,110120.0,0.31061708]
[1761916274442,0.00066296,110130.0,110120.0,1.16146816]
[1761916278225,0.00066296,110130.0,110120.0,1.9268937]
[1761916278457,0.00066296,110130.0,110120.0,1.9278937]
[1761916278685,0.0002,110150.0,110140.0,0.97796202]
[1761916278878,0.0002,110150.0,110140.0,1.18593004]
[1761916279138,0.0002,110150.0,110140.0,1.21063004]
[1761916279351,0.0002,110150.0,110140.0,1.55063004]
[1761916280395,0.0002,110150.0,110140.0,1.55263004]
[1761916281268,0.0002,110150.0,110140.0,0.27195995]
[1761916281713,0.01106,110150.0,110140.0,0.03033]
[1761916281947,2.57444494,110150.0,110140.0,0.002]
[1761916282074,2.56358494,110150.0,110140.0,0.01567]
[1761916282282,2.43648554,110150.0,110140.0,0.15485094]
[1761916282495,2.43848554,110150.0,110140.0,0.15485094]
[1761916282697,2.56558494,110150.0,110140.0,0.02774]
[1761916282896,2.1401594,110150.0,110140.0,0.15485094]
[1761916283110,2.56558494,110150.0,110140.0,0.15485094]
[1761916284150,2.0,110140.0,110130.0,0.13911159]
[1761916284373,0.44714554,110140.0,110130.0,0.15478159]
[1761916284793,0.44736648,110140.0,110130.0,0.17928159]
[1761916285414,0.02194094,110140.0,110130.0,0.18028159]
[1761916285827,0.57439852,110140.0,110130.0,0.18028249]
[1761916286045,0.14905188,110140.0,110130.0,0.15578249]
[1761916286304,0.01108094,110140.0,110130.0,0.15578249]
[1761916286509,0.01108094,110140.0,110130.0,0.18028249]
[1761916286728,0.00022094,110140.0,110130.0,0.23132859]
[1761916286950,0.00022094,110140.0,110130.0,0.21316824]
[1761916287660,0.00022094,110140.0,110130.0,0.21216824]
[1761916288126,0.00422094,110140.0,110130.0,0.21216824]
[1761916288570,0.00022094,110140.0,110130.0,0.21216824]
[1761916288788,0.00122094,110140.0,110130.0,0.21216824]
[1761916289231,0.01208094,110140.0,110130.0,0.21216824]
[1761916289838,0.00122094,110140.0,110130.0,0.21216824]
[1761916296529,0.01208094,110140.0,110130.0,0.21216824]
[1761916296735,0.13919188,110140.0,110130.0,0.12712249]
[1761916296949,0.57539852,110140.0,110130.0,0.12712249]
[1761916297495,0.13919188,110140.0,110130.0,0.12712249]
[1761916302854,0.15005188,110140.0,110120.0,0.17307503]
[1761916303511,0.13919188,110140.0,110120.0,0.17307503]
[1761916303853,0.13819188,110140.0,110120.0,0.23916627]
[1761916304589,0.13919188,110140.0,110120.0,0.23916627]
[1761916305024,0.13919188,110140.0,110130.0,0.14326249]
[1761916305924,0.13819188,110140.0,110130.0,0.14326249]
[1761916306361,0.13919188,110140.0,110130.0,0.14326249]
[1761916307257,0.13919188,110140.0,110130.0,0.01614]
[1761916307459,0.16648936,110140.0,110120.0,0.23916627]
[1761916308066,0.16648936,110140.0,110130.0,0.02847]
[1761916308303,0.16648936,110140.0,110130.0,0.15559249]
[1761916308957,0.17634936,110140.0,110120.0,0.23916627]
[1761916309164,0.16548936,110140.0,110120.0,0.23916627]
[1761916309475,0.16648936,110140.0,110130.0,0.02847]
[1761916309701,0.16548936,110140.0,110130.0,0.15559249]
[1761916310138,0.16648936,110140.0,110130.0,0.15559249]
[1761916311826,0.03937842,110140.0,110130.0,0.15559249]
[1761916312036,0.03937842,110140.0,110130.0,0.17858249]
[1761916312395,0.16648936,110140.0,110130.0,0.17858249]
[1761916312607,0.16648936,110140.0,110130.0,0.15559249]
[1761916312871,0.16648936,110140.0,110130.0,0.17858249]
[1761916313666,0.16648936,110140.0,110130.0,0.15559249]
[1761916314603,0.16622927,110140.0,110130.0,0.15559249]
[1761916315030,0.16622927,110140.0,110130.0,0.17858249]
[1761916315476,0.16622927,110140.0,110130.0,0.15559249]
[1761916315826,0.16622927,110140.0,110130.0,0.17858249]
[1761916316275,0.55745248,110150.0,110130.0,0.19491737]
[1761916316480,0.12711094,110140.0,110130.0,0.19491737]
[1761916316839,0.12711094,110140.0,110130.0,0.02847]
[1761916317200,0.12711094,110140.0,110120.0,0.17156503]
[1761916318270,2.0,110120.0,110110.0,0.1617453]
[1761916318691,2.0,110120.0,110110.0,0.1778853]
[1761916319844,2.0,110120.0,110110.0,0.1818853]
[1761916320044,2.0,110120.0,110110.0,0.21500837]
[1761916320428,2.0,110120.0,110110.0,0.19201837]
[1761916320638,0.12713403,110120.0,110110.0,0.1588953]
[1761916320834,0.12713403,110120.0,110110.0,0.1548953]
[1761916321239,2.0,110120.0,110110.0,0.1788853]
[1761916322246,2.12713403,110120.0,110110.0,0.05174]
[1761916322445,0.12713403,110120.0,110110.0,0.05174]
[1761916322785,0.12713403,110120.0,110110.0,0.17888558]
[1761916322982,0.12713403,110120.0,110110.0,0.21170868]
[1761916326170,0.12713403,110120.0,110110.0,0.17888558]
[1761916327004,0.12713403,110120.0,110110.0,0.05174]
[1761916327211,0.12713403,110120.0,110110.0,0.17888558]
[1761916327619,2.55248067,110120.0,110110.0,0.001]
[1761916328494,0.12714558,110110.0,110100.0,0.01207]
[1761916328700,0.12714558,110110.0,110100.0,0.04670576]
[1761916329115,0.12714558,110110.0,110100.0,0.02834154]
[1761916329380,2.55249222,110110.0,110100.0,0.00013154]
[1761916329581,2.12714558,110110.0,110100.0,0.00013154]
[1761916329999,2.12714558,110110.0,110100.0,0.01630154]
[1761916330412,2.12714558,110110.0,110100.0,0.01730154]
[1761916330605,2.12714558,110110.0,110100.0,0.14445866]
[1761916330751,2.12714558,110110.0,110100.0,0.15683866]
[1761916332222,2.12714558,110110.0,110100.0,0.02968154]
[1761916332727,2.12714558,110110.0,110100.0,0.15683866]
[1761916333418,2.12714558,110110.0,110100.0,0.15583866]
[1761916333650,2.12714558,110110.0,110100.0,0.02868154]
[1761916333867,2.12814558,110110.0,110100.0,0.02868154]
[1761916334294,2.001,110110.0,110100.0,0.15583866]
[1761916334485,2.001,110110.0,110100.0,0.18030866]
[1761916336661,0.001,110110.0,110100.0,0.18030866]
[1761916338247,0.12814558,110110.0,110100.0,0.15583866]
[1761916338495,2.12814558,110110.0,110100.0,0.02868154]
[1761916338666,2.12814558,110110.0,110100.0,0.00013154]
[1761916338906,2.55349222,110110.0,110100.0,0.00013154]
[1761916339114,2.12814558,110110.0,110100.0,0.00013154]
[1761916339322,2.55349222,110110.0,110100.0,0.00013154]
[1761916342552,2.56773916,110110.0,110100.0,0.00013154]
[1761916342736,2.55349222,110110.0,110100.0,0.00013154]
[1761916346508,1.94019022,110110.0,110100.0,0.17802866]
[1761916346712,0.01424393,110120.0,110110.0,0.12714558]
[1761916346713,2.64137874,110120.0,110110.0,0.12714558]
[1761916346922,0.14137874,110120.0,110110.0,0.15416558]
[1761916347126,0.01424393,110120.0,110110.0,0.17788558]
[1761916347365,2.0,110120.0,110110.0,0.17788558]
[1761916347511,2.0,110120.0,110110.0,0.68586507]
[1761916347717,0.59331284,110140.0,110120.0,0.12713018]
[1761916347718,2.0,110130.0,110120.0,0.12713018]
[1761916347915,2.0,110130.0,110120.0,0.16254018]
[1761916348120,2.0,110130.0,110120.0,0.17687018]
[1761916348568,2.0,110130.0,110120.0,0.17387018]
[1761916348912,2.0,110130.0,110120.0,0.13280853]
[1761916348913,0.12712249,110130.0,110120.0,0.13280853]
[1761916349116,3.0525371,110130.0,110110.0,0.16255558]
[1761916349337,2.0,110120.0,110110.0,0.16255558]
[1761916349762,2.0,110120.0,110110.0,0.17788558]
[1761916351868,2.0,110120.0,110110.0,0.18188558]
[1761916352696,2.0,110120.0,110110.0,0.26485046]
[1761916354621,0.01424166,110130.0,110120.0,0.12713403]
[1761916354890,0.01424166,110130.0,110120.0,0.17787403]
[1761916355104,0.01424166,110130.0,110120.0,0.60328864]
[1761916355284,0.01424166,110130.0,110120.0,0.17787403]
[1761916355490,0.01424166,110130.0,110120.0,0.26078294]
[1761916358970,0.43965627,110130.0,110120.0,0.26078294]
[1761916359101,0.01424166,110130.0,110120.0,0.17787403]
[1761916361337,0.43965627,110130.0,110120.0,0.17787403]
[1761916361956,0.43965627,110130.0,110120.0,0.17747234]
[1761916362152,2.56677876,110130.0,110120.0,0.02702]
[1761916362611,2.56677876,110130.0,110110.0,0.16255558]
[1761916362612,2.0,110120.0,110110.0,0.16255558]
[1761916362832,0.42541461,110120.0,110110.0,0.19361727]
[1761916363045,2.0,110120.0,110110.0,0.20894727]
[1761916364954,2.55254864,110120.0,110100.0,0.17174131]
[1761916365169,2.0,110110.0,110100.0,0.17174131]
[1761916365615,2.55256019,110110.0,110100.0,0.14806131]
[1761916365819,2.6423792,110110.0,110100.0,0.00013154]
[1761916366254,2.6423792,110110.0,110100.0,0.01617154]
[1761916366464,2.0,110110.0,110100.0,0.17858866]
[1761916366888,2.0,110110.0,110100.0,0.67857301]
[1761916367100,2.0,110120.0,110110.0,0.12714558]
[1761916367363,2.08981901,110120.0,110110.0,0.15476558]
[1761916367575,2.0,110120.0,110110.0,0.60286019]
[1761916367790,2.0,110120.0,110110.0,0.6926792]
[1761916368000,2.0,110120.0,110110.0,0.6906792]
[1761916368426,2.0,110120.0,110110.0,0.26526459]
[1761916368643,0.001,110120.0,110110.0,0.26526459]
[1761916368859,0.003,110120.0,110110.0,0.26526459]
[1761916369313,0.003,110120.0,110110.0,0.6906792]
[1761916369733,0.002,110120.0,110110.0,0.6906792]
[1761916369954,0.97620275,110130.0,110120.0,0.12713403]
[1761916370160,2.47620275,110130.0,110120.0,0.14317403]
[1761916371341,2.47720275,110130.0,110120.0,0.14317403]
[1761916372144,2.47720275,110130.0,110120.0,0.01604]
[1761916373868,2.01008017,110130.0,110120.0,0.15475403]
[1761916374079,0.001,110130.0,110120.0,0.60384864]
[1761916375241,2.49043686,110140.0,110130.0,0.12712249]
[1761916375462,2.21692995,110140.0,110130.0,0.17842249]
[1761916376137,2.21692995,110140.0,110130.0,0.15474249]
[1761916376369,2.12711094,110140.0,110130.0,0.15474249]
[1761916376593,2.12711094,110140.0,110130.0,0.17742249]
[1761916377066,2.0,110140.0,110130.0,0.2515776]
[1761916377270,2.001,110140.0,110130.0,0.2515776]
[1761916377789,2.12811094,110140.0,110130.0,0.10177511]
[1761916378023,2.0,110130.0,110120.0,0.13871403]
[1761916378239,2.0,110130.0,110120.0,0.60384864]
[1761916379791,2.0,110130.0,110120.0,0.60484864]
[1761916382432,2.0,110130.0,110120.0,0.17943403]
[1761916382600,2.0,110130.0,110120.0,0.63727278]
[1761916390976,2.0,110130.0,110120.0,0.21185817]
[1761916391188,2.0,110130.0,110120.0,0.63727278]
[1761916393508,2.0,110140.0,110130.0,0.12712249]
[1761916393719,2.0,110140.0,110130.0,0.13870249]
[1761916393925,2.0,110140.0,110130.0,0.15474249]
[1761916394790,2.001,110140.0,110130.0,0.15474249]
[1761916395838,0.001,110140.0,110130.0,0.25288202]
[1761916396076,0.001,110140.0,110130.0,0.67829663]
[1761916397537,2.51424054,110150.0,110140.0,0.12711094]
[1761916397762,1.8065357,110150.0,110140.0,0.60374555]
[1761916397960,2.0,110150.0,110140.0,0.60374555]
[1761916398172,2.00022091,110150.0,110140.0,0.60374555]
[1761916398794,2.00022091,110150.0,110140.0,1.11192593]
[1761916398795,0.00130843,110150.0,110140.0,1.11192593]
[1761916399011,0.00130843,110150.0,110140.0,1.20174494]
[1761916399468,0.00130843,110150.0,110140.0,1.96715955]
[1761916399689,0.00130843,110150.0,110140.0,1.54174494]
[1761916400407,0.0002,110210.0,110200.0,0.12704174]
[1761916400700,0.00068214,110210.0,110200.0,1.10860414]
[1761916400884,0.00068214,110210.0,110200.0,0.28078492]
[1761916401095,0.00068214,110210.0,110200.0,0.06392417]
[1761916401302,0.00068214,110210.0,110200.0,0.17826174]
[1761916401516,0.00068214,110210.0,110200.0,0.60367635]
[1761916401726,0.00368214,110210.0,110200.0,0.17826174]
[1761916401940,0.00368214,110210.0,110200.0,0.60367635]
[1761916402155,0.00068214,110210.0,110200.0,0.67798031]
[1761916402361,0.00068214,110210.0,110200.0,1.19321393]
[1761916402562,0.00068214,110210.0,110200.0,1.19421393]
[1761916402774,0.00068214,110210.0,110200.0,0.76879932]
[1761916403418,0.00068214,110210.0,110200.0,1.19421393]
[1761916404064,0.00068214,110210.0,110200.0,0.76879932]
[1761916404272,0.00068214,110210.0,110200.0,1.19421393]
[1761916404502,0.00068214,110210.0,110200.0,0.76879932]
[1761916405384,0.00068214,110210.0,110200.0,1.19421393]
[1761916405656,0.00068214,110210.0,110200.0,0.76879932]
[1761916405852,0.00068214,110210.0,110200.0,0.34338471]
[1761916406068,0.0020068,110210.0,110200.0,1.19421393]
[1761916409353,0.0020068,110210.0,110200.0,0.76803572]
[1761916409725,2.0,110230.0,110220.0,0.14311868]
[1761916409928,2.00014455,110230.0,110220.0,0.14311868]
[1761916410141,2.00014455,110230.0,110220.0,0.15526868]
[1761916410557,2.00014455,110230.0,110220.0,0.02825]
[1761916410558,2.12715171,110230.0,110220.0,0.02825]
[1761916410981,2.13015171,110230.0,110220.0,0.02825]
[1761916411194,2.13015171,110230.0,110220.0,0.17871868]
[1761916411195,2.01254422,110230.0,110220.0,0.17871868]
[1761916411410,2.13955138,110230.0,110220.0,0.02825]
[1761916411616,2.0,110220.0,110210.0,0.16262082]
[1761916412027,2.0,110220.0,110210.0,0.17872082]
[1761916412753,2.0,110220.0,110210.0,0.19686799]
[1761916412982,2.0,110220.0,110210.0,0.60337183]
[1761916413225,0.001,110220.0,110210.0,0.60337183]
[1761916413695,2.51292075,110230.0,110220.0,0.12701868]
[1761916413919,2.51292075,110230.0,110220.0,0.18584263]
[1761916413920,2.02131798,110230.0,110220.0,0.18584263]
[1761916414370,2.02131798,110230.0,110220.0,0.20929263]
[1761916414595,2.02131798,110230.0,110220.0,0.15526868]
[1761916415042,2.14832514,110230.0,110220.0,0.15526868]
[1761916415272,2.14876649,110230.0,110220.0,0.15526868]
[1761916415698,2.14876649,110230.0,110210.0,0.16662082]
[1761916415920,2.0,110220.0,110210.0,0.16262082]
[1761916416149,0.0002207,110220.0,110210.0,0.16262082]
[1761916416374,2.0,110210.0,110200.0,0.14842615]
[1761916416606,2.0,110210.0,110200.0,0.24546519]
[1761916416829,2.0,110210.0,110200.0,0.26156519]
[1761916417055,2.0,110210.0,110200.0,0.61262716]
[1761916417510,2.0,110210.0,110200.0,0.18797615]
[1761916417736,0.0002207,110220.0,110210.0,0.12703021]
[1761916417973,0.0002207,110220.0,110210.0,0.60338122]
[1761916418208,0.00862388,110220.0,110210.0,0.17873021]
[1761916418475,0.00862388,110220.0,110210.0,0.64527876]
[1761916419116,0.0002207,110220.0,110210.0,0.22062775]
[1761916419336,0.0096258,110220.0,110210.0,0.64527876]
[1761916419553,0.0096258,110220.0,110210.0,0.22062775]
[1761916419777,0.0096258,110220.0,110210.0,0.64527876]
[1761916419993,0.0096258,110220.0,110210.0,0.22062775]
[1761916420217,0.0086258,110220.0,110210.0,0.22062775]
[1761916420430,0.0086258,110220.0,110210.0,0.02825]
[1761916420652,0.0086258,110220.0,110210.0,0.03225]
[1761916420874,0.0086258,110220.0,110210.0,0.15928021]
[1761916421591,0.0086258,110220.0,110210.0,0.16028021]
[1761916421823,0.0086258,110220.0,110210.0,0.18273021]
[1761916422029,0.0086258,110220.0,110210.0,0.17873021]
[1761916422231,0.0096258,110220.0,110210.0,0.17873021]
[1761916423089,0.0096258,110220.0,110210.0,0.26289285]
[1761916423298,0.0096258,110220.0,110210.0,0.68754386]
[1761916424981,0.0086258,110220.0,110210.0,0.68754386]
[1761916425409,0.0086258,110220.0,110210.0,0.77736287]
[1761916425606,0.0086258,110220.0,110210.0,0.77936287]
[1761916426166,0.0086258,110220.0,110210.0,0.77736287]
[1761916426589,0.0086258,110220.0,110210.0,0.78136287]
[1761916426996,0.0086258,110220.0,110210.0,0.78236287]
[1761916427982,0.0086258,110220.0,110210.0,0.35771186]
[1761916428259,0.0086258,110220.0,110210.0,0.78236287]
[1761916429067,0.0086817,110220.0,110210.0,0.78236287]
[1761916433397,0.0086817,110220.0,110210.0,0.35771186]
[1761916433645,0.0086817,110220.0,110210.0,0.78236287]
[1761916436945,0.0271559,110230.0,110220.0,0.12701868]
[1761916437150,0.00863775,110230.0,110220.0,1.22508424]
[1761916437348,0.00863775,110230.0,110220.0,0.80955544]
[1761916437588,0.00863775,110230.0,110220.0,0.78228771]
[1761916438188,0.00863775,110230.0,110220.0,0.78628771]
[1761916438862,0.00863775,110230.0,110220.0,0.78228771]
[1761916438998,0.00863775,110230.0,110220.0,0.78428771]
[1761916439595,0.00863775,110230.0,110220.0,0.78528771]
[1761916439813,0.00863775,110230.0,110220.0,0.78428771]
[1761916441951,0.00863775,110230.0,110220.0,0.6944687]
[1761916442163,0.00863775,110230.0,110220.0,0.26981769]
[1761916442374,0.00863775,110230.0,110220.0,0.17999868]
[1761916443055,2.63564491,110230.0,110220.0,0.002]
[1761916443267,2.13564491,110230.0,110220.0,0.002]
[1761916443526,2.13564491,110230.0,110220.0,0.12901868]
[1761916443735,2.13564491,110230.0,110220.0,0.002]
[1761916443978,2.0,110220.0,110210.0,0.16311021]
[1761916444218,2.0,110220.0,110210.0,0.23672895]
[1761916444439,2.0,110220.0,110210.0,0.25182895]
[1761916444912,2.12701868,110220.0,110210.0,0.10086874]
[1761916445159,2.0,110220.0,110210.0,0.22789895]
[1761916445379,2.0,110220.0,110210.0,0.15428021]
[1761916445591,0.12701868,110220.0,110210.0,0.15428021]
[1761916445795,0.12701868,110220.0,110210.0,0.02725]
[1761916446245,0.12701868,110220.0,110210.0,0.15428021]
[1761916447281,0.12715171,110230.0,110210.0,0.15428021]
[1761916447494,2.0,110220.0,110210.0,0.17821021]
[1761916448157,2.12701868,110220.0,110210.0,0.15428021]
[1761916448366,0.12701868,110220.0,110210.0,0.15428021]
[1761916448822,0.12701868,110220.0,110210.0,0.02725]
[1761916449049,2.0,110220.0,110210.0,0.13918021]
[1761916449273,0.12701868,110220.0,110210.0,0.12703021]
[1761916449715,0.12701868,110220.0,110210.0,0.14213021]
[1761916450183,2.0,110220.0,110210.0,0.15408021]
[1761916451748,2.0,110220.0,110210.0,0.17801021]
[1761916456527,2.0,110220.0,110210.0,0.60266122]
[1761916456738,2.0,110220.0,110210.0,0.66101413]
[1761916457608,0.00036521,110230.0,110220.0,0.12701868]
[1761916457821,0.00036521,110230.0,110220.0,0.60418969]
[1761916459219,0.00036521,110230.0,110220.0,0.17953868]
[1761916459426,0.00236521,110230.0,110220.0,0.62233521]
[1761916459627,0.00236521,110230.0,110220.0,0.68615652]
[1761916460191,0.00036521,110230.0,110220.0,0.68615652]
[1761916461477,0.00036521,110230.0,110220.0,0.68715652]
[1761916461687,0.00036521,110230.0,110220.0,1.20162654]
[1761916462104,0.00036521,110230.0,110220.0,1.20462654]
[1761916462922,0.00036521,110230.0,110220.0,0.35532452]
[1761916463129,0.00036521,110230.0,110220.0,0.77997553]
[1761916463567,0.00036521,110230.0,110220.0,0.78042853]
[1761916466807,0.00036521,110230.0,110220.0,0.35577752]
[1761916467027,0.00036521,110230.0,110220.0,0.78042853]
[1761916471397,0.00036521,110230.0,110220.0,1.2047492]
[1761916472462,0.00036521,110230.0,110220.0,0.35577752]
[1761916472668,0.00036521,110230.0,110220.0,1.2047492]
[1761916476444,0.00036521,110230.0,110220.0,1.2042962]